Cogmind - Beta 12 @@@ ROGUE MODE // 2023.09.25 @ 14:18:23 Player: Kitarik02 Result: Self-destructed Performance ------------- Evolutions (2) 1000 Regions Visited (4) 800 Robots Destroyed (41) 205 Value Destroyed (1095) 1095 Prototype IDs (0) 0 Alien Tech Used (0) 0 Bonus (89) 89 TOTAL SCORE: 3189 Bonus ------- High Alert Combat Kills 75 Follower Combat Kills 14 Cogmind --------- Core Integrity 358/550 Matter 151/300 Energy 450/450 System Corruption 1% Temperature Cool (0) Movement Core (250) Ox4 Location -8/Materials Parts ------- > --- POWER (2) -------- Ion Engine > --- PROPULSION (2) --- (None) > --- UTILITY (4) ------ Heat Sink Small Storage Unit Large Battery > --- WEAPON (3) ------- (None) > --- INVENTORY (8) ---- Aluminum Leg Aluminum Leg Heat Sink Sensor Array Medium Laser Rocket Launcher Peak State ------------ > --- POWER ------------ Ion Engine Ion Engine > --- PROPULSION ------- Light Treads Light Treads > --- UTILITY ---------- Heat Sink Small Storage Unit Large Battery Utility Shielding > --- WEAPON ----------- Ion Cannon Heavy Assault Rifle Grenade Launcher > --- INVENTORY -------- Aluminum Leg Aluminum Leg Heat Sink Sensor Array Medium Laser Rocket Launcher [Rating: 14] Favorites ----------- Power Ion Engine Engine Ion Engine Propulsion Light Treads Treads Light Treads Leg Aluminum Leg Utility Small Storage Unit Device Heat Sink Storage Small Storage Unit Protection Utility Shielding Weapon Grenade Launcher Energy Gun Medium Laser Energy Cannon Ion Cannon Ballistic Gun Heavy Assault Rifle Ballistic Cannon Light Cannon Launcher Grenade Launcher Build | -11 -10 -9 -9 -8 ------- Run | Jun Mat Mat Min Mat Slots Evolved 4 | . . 2 . 2 Power 1 | . . 1 . . Propulsion . | . . . . . Utility 2 | . . . . 2 Weapon 1 | . . 1 . . Parts Attached 24 | 6 3 12 . 3 Power 3 | 1 . 2 . . Engine 3 | 1 . 2 . . Core . | . . . . . Reactor . | . . . . . Propulsion 6 | 2 . 4 . . Treads 2 | . . 2 . . Leg 4 | 2 . 2 . . Wheel . | . . . . . Hover . | . . . . . Flight . | . . . . . Utility 4 | 1 1 . . 2 Device 1 | . . . . 1 Storage 2 | 1 . . . 1 Processor . | . . . . . Hackware . | . . . . . Protection 1 | . 1 . . . Artifact . | . . . . . Weapon 11 | 2 2 6 . 1 Energy Gun 3 | 2 . 1 . . Energy Cannon 1 | . . . . 1 Ballistic Gun 1 | . . 1 . . Ballistic Cannon 3 | . 1 2 . . Launcher 3 | . 1 2 . . Special Weapon . | . . . . . Impact Weapon . | . . . . . Slashing Weapon . | . . . . . Piercing Weapon . | . . . . . Special Melee Weapon . | . . . . . Unidentified Prototypes . | . . . . . Parts Lost 14 | . . 7 . 7 Power 2 | . . 1 . 1 Propulsion 4 | . . 2 . 2 Utility 1 | . . . . 1 Weapon 7 | . . 4 . 3 Highest Loss Streak 6 | . . 5 . 6 To Critical Strikes . | . . . . . Average Slot Usage (%) 90 | . 92 78 100 95 Engine 15 | . 14 12 22 15 Treads 13 | . . 10 22 17 Leg 8 | . 28 10 . . Device 1 | . . . . 9 Storage 12 | . 14 11 11 18 Protection 10 | . 7 11 11 9 Energy Gun 7 | . 8 6 11 2 Energy Cannon 1 | . . . . 6 Ballistic Gun 5 | . . 1 11 8 Ballistic Cannon 3 | . 7 7 . . Launcher 10 | . 12 9 11 8 Naked Turns . | . . . . . Heaviest Build 32 | 13 17 24 24 32 Greatest Support 40 | 20 20 40 40 40 Greatest Overweight (x) 4 | 1 . 2 . 4 Average Overweight (x) . | . . . . . Largest Inventory Capacity 8 | 8 8 8 8 8 Average Capacity 7 | 6 8 8 8 8 Most Carried 8 | 3 8 8 7 6 Average Carried 5 | 1 5 6 6 5 Final Capacity 8 | 8 8 8 8 8 Final Carried 8 | 3 8 6 7 6 Class Distribution -------------------- 51% | Bomber 41% | Mutant 6% | Tank Dominant Class ---------------- Mutant | -10/Materials Mutant | -9/Materials Bomber | -9/Mines Bomber | -8/Materials Resources | -11 -10 -9 -9 -8 ----------- Run | Jun Mat Mat Min Mat Matter Collected 752 | 227 42 376 42 65 Remotely . | . . . . . Salvage Created 955 | . 61 591 16 287 Parts 84 | . 11 49 5 19 Haulers Intercepted 2 | . . 2 . . Recyclers Shooed 1 | . . . . 1 Parts Field Recycled . | . . . . . Retrieved Matter . | . . . . . Parts Self-Destructed . | . . . . . Prevented . | . . . . . Kills | -11 -10 -9 -9 -8 ------- Run | Jun Mat Mat Min Mat Combat Hostiles Destroyed 25 | . 2 15 2 6 Guns 5 | . . 4 . 1 Cannons 10 | . 1 5 . 4 AOE 10 | . 1 6 2 1 Classes Destroyed 8 | . 2 6 . . Worker 4 | . . 4 . . Builder 5 | . . 1 . 4 Hauler 2 | . . 2 . . Watcher 5 | . 2 2 . 1 Swarmer 3 | . . 1 2 . Grunt 16 | . 2 9 . 5 Brawler 1 | . . 1 . . Sentry 5 | . . 4 . 1 Best Kill Streak 11 | . 2 9 2 11 Combat Bots Only 5 | . 1 5 2 5 Max Kills in Single Turn 3 | . 1 2 2 3 Gunslinging . | . . . . . Exploded 2 | . 1 1 2 1 Melee . | . . . . . Uniques/NPCs Destroyed . | . . . . . Combat | -11 -10 -9 -9 -8 -------- Run | Jun Mat Mat Min Mat Damage Taken 1906 | . 32 1054 23 797 Core 378 | . 14 155 17 192 Absorbed by Shields . | . . . . . Redirected to Shielding 51 | . . 16 . 35 Core Remaining (%) 83 | 100 94 . 57 . Volleys Fired 79 | . 5 50 1 23 Largest 3 | . 2 3 3 3 Hottest 113 | . 80 103 103 113 Shots Fired 147 | . 7 76 3 61 Gun 58 | . 2 31 2 23 Cannon 58 | . 3 32 . 23 Launcher 31 | . 2 13 1 15 Special . | . . . . . Kinetic 62 | . 3 35 1 23 Thermal 54 | . 2 28 1 23 Explosive 31 | . 2 13 1 15 Electromagnetic . | . . . . . Robot Hit Streak 8 | . 2 8 1 7 Robot Miss Streak 5 | . 1 5 2 2 Penetration Max . | . . . . . Secondary Targets . | . . . . . Shots Hit Robots 80 | . 4 42 1 33 Core Hits 69 | . 5 39 2 23 Critical Kills . | . . . . . Critical Parts Destroyed . | . . . . . Critical Strikes 1 | . . 1 . . Burn 1 | . . 1 . . Melee Attacks . | . . . . . Impact . | . . . . . Slashing . | . . . . . Piercing . | . . . . . Sneak Attacks . | . . . . . Combat Hostiles . | . . . . . Follow-up Attacks . | . . . . . Damage Inflicted 2939 | . 111 1452 154 1222 Guns 411 | . . 243 . 168 Cannons 678 | . 36 345 . 297 Explosions 1850 | . 75 864 154 757 Melee . | . . . . . Ramming . | . . . . . Kinetic 581 | . 36 377 . 168 Thermal 643 | . . 346 . 297 Explosive 1715 | . 75 729 154 757 Electromagnetic . | . . . . . Impact . | . . . . . Slashing . | . . . . . Piercing . | . . . . . Highest Corruption 1 | . 1 . . 1 Average Corruption 1 | . 1 . . 1 Corruption Purged . | . . . . . Corruption Blocked . | . . . . . Effects 1 | . . . . 1 Data Loss (major) 1 | . . . . 1 Overload Shots . | . . . . . Overflow Damage 62 | . . 36 3 23 Projectiles 13 | . . . . 13 Explosions 49 | . . 36 3 10 Melee . | . . . . . Knockbacks 2 | . . 2 . . Impact . | . . . . . Kinetic 2 | . . 2 . . Secondary . | . . . . . Self-Inflicted Damage 228 | . 23 205 . . Shots 5 | . 1 4 . . Rammed . | . . . . . Targets Rammed . | . . . . . Kicked . | . . . . . Crushed . | . . . . . Highest Temperature 128 | . 42 102 48 128 Average Temperature 38 | . 22 32 28 50 Received Heat Transfer 699 | . 6 315 . 378 Siege Activations . | . . . . . Robots Corrupted . | . . . . . Combat Hostiles . | . . . . . Parts Fried . | . . . . . Impact Corruptions . | . . . . . Robots Melted . | . . . . . Combat Hostiles . | . . . . . Parts Melted 1 | . . 1 . . Heat Transferred 1284 | . . 803 . 481 Parts Sabotaged . | . . . . . Parts Stolen . | . . . . . Parts Stripped . | . . . . . Power Chain Reactions . | . . . . . Missiles Intercepted . | . . . . . Alert | -11 -10 -9 -9 -8 ------- Run | Jun Mat Mat Min Mat Peak Influence 610 | . 143 610 294 326 Initial 184 | . . 59 184 114 Average 242 | . 72 370 270 188 Maximum Alert Level 2 | . . 2 1 1 Low Security (%) 44 | 100 100 20 20 58 Level 1 33 | . . 16 79 41 Level 2 21 | . . 63 . . Level 3 . | . . . . . Level 4 . | . . . . . Level 5 . | . . . . . High Security . | . . . . . Max Security . | . . . . . Squads Dispatched 7 | . 1 3 . 3 Investigation 1 | . 1 . . . Extermination . | . . . . . Reinforcement 6 | . . 3 . 3 Assault . | . . . . . Garrison . | . . . . . Intercept . | . . . . . Searches Triggered . | . . . . . Construction Impeded 2 | . . 1 . 1 Haulers Reinforced . | . . . . . Active Scanning Responses . | . . . . . Cargo Convoy Interrupts . | . . . . . Stealth | -11 -10 -9 -9 -8 --------- Run | Jun Mat Mat Min Mat Distress Signals 3 | . 1 1 . 1 Communications Jammed . | . . . . . Distress Signals . | . . . . . Times Spotted 46 | . 4 21 4 17 Peak Tracking Total 7 | . 2 3 3 7 Tactical Retreats . | . . . . . Traps | -11 -10 -9 -9 -8 ------- Run | Jun Mat Mat Min Mat Traps Triggered 2 | . 1 . . 1 Indirectly . | . . . . . Trap Hack Attempts . | . . . . . Triggered . | . . . . . Disarmed . | . . . . . Reprogrammed . | . . . . . Reused . | . . . . . Traps Extracted . | . . . . . Installed . | . . . . . Triggered . | . . . . . Machines | -11 -10 -9 -9 -8 ---------- Run | Jun Mat Mat Min Mat Machines Disabled 6 | . 1 4 . 1 Max in Single Turn 3 | . 1 3 . 1 Machines Repaired . | . . . . . Machines Sabotaged . | . . . . . Overloaded Fab Kills . | . . . . . Hacking | -11 -10 -9 -9 -8 --------- Run | Jun Mat Mat Min Mat Machines Accessed 5 | . 3 1 . 1 Terminals 5 | . 3 1 . 1 Fabricators . | . . . . . Repair Stations . | . . . . . Recycling Units . | . . . . . Scanalyzers . | . . . . . Garrison Access . | . . . . . Total Hacks 15 | . 6 6 . 3 Successful 9 | . 3 4 . 2 Failed 6 | . 3 2 . 1 Catastrophic . | . . . . . Database Lockouts . | . . . . . Manual 1 | . 1 . . . Terminals 15 | . 6 6 . 3 Fabricators . | . . . . . Repair Stations . | . . . . . Recycling Units . | . . . . . Scanalyzers . | . . . . . Garrison Access . | . . . . . Terminal Hacks 9 | . 3 4 . 2 Record 8 | . 2 4 . 2 Zone Layout 1 | . 1 . . . Fabricator Hacks . | . . . . . Repair Station Hacks . | . . . . . Recycling Unit Hacks . | . . . . . Scanalyzer . | . . . . . Garrison Access Hacks . | . . . . . Unauthorized Hacks . | . . . . . Terminals . | . . . . . Fabricators . | . . . . . Repair Stations . | . . . . . Recycling Units . | . . . . . Scanalyzers . | . . . . . Garrison Access . | . . . . . Data Cores Recovered . | . . . . . Used . | . . . . . Hacking Detections 4 | . 2 1 . 1 Full Trace Events 1 | . 1 . . . Feedback Events . | . . . . . Feedback Blocked . | . . . . . Robot Schematics Acquired . | . . . . . Robots Built . | . . . . . Authchips . | . . . . . Time . | . . . . . Total Robot Build Rating . | . . . . . Part Schematics Acquired . | . . . . . Parts Built . | . . . . . Authchips . | . . . . . Time . | . . . . . Total Part Build Rating . | . . . . . Parts Repaired . | . . . . . Time . | . . . . . Parts Recycled . | . . . . . Recycled Matter . | . . . . . Retrieved Matter . | . . . . . Retrieved Components . | . . . . . Parts Scanalyzed . | . . . . . Part Schematics Acquired . | . . . . . Parts Damaged . | . . . . . Bothacking | -11 -10 -9 -9 -8 ------------ Run | Jun Mat Mat Min Mat Used RIF Installer . | . . . . . Robots Hacked . | . . . . . Non-combat . | . . . . . Combat . | . . . . . Robot Hacks Applied . | . . . . . Relay Couplers Released . | . . . . . Fabnet Peak Effective % . | . . . . . Robots Rewired . | . . . . . Allies Hacked . | . . . . . Hacks Repelled . | . . . . . Allies | -11 -10 -9 -9 -8 -------- Run | Jun Mat Mat Min Mat Total Allies 2 | . . . 2 . Largest Group 2 | . . . 2 2 Highest-Rated Group 57 | . . . 57 57 Highest-Rated Ally 31 | . . . 31 31 Total Orders . | . . . . . Ally Attacks 20 | . . . 4 16 Total Damage 249 | . . . 43 206 Kills 3 | . . . 2 1 Allies Corrupted . | . . . . . Allies Melted . | . . . . . Intel | -11 -10 -9 -9 -8 ------- Run | Jun Mat Mat Min Mat Robot Analysis Total . | . . . . . Derelict Logs Recovered . | . . . . . Drone Launches . | . . . . . Drone Recoveries . | . . . . . Exploration | -11 -10 -9 -9 -8 ------------- Run | Jun Mat Mat Min Mat Turns Passed 1478 | 81 236 503 381 277 Spaces Moved 859 | 67 179 255 236 122 Core 33 | 23 . 7 . 3 Treads 477 | . . 122 236 119 Legs 349 | 44 179 126 . . Wheels . | . . . . . Hover . | . . . . . Flight . | . . . . . Fastest Speed 50 | 50 120 120 160 160 Average Speed 141 | 99 120 139 160 163 Slowest Speed 250 | 120 120 160 160 250 Overloaded Moves . | . . . . . Propulsion Burnouts . | . . . . . Robots Hopped . | . . . . . Cave-ins Triggered 1 | . . 1 . . Exploration Rate (%) 26 | 3 31 24 53 20 Regions Visited 4 Branch Regions 1 Pre-discovered Areas . | . . . . . Known Exits Taken . | . . . . . Unknown Exits Taken 4 | 1 1 1 1 . Scrap Searched 1 | . . . 1 . Spaces Dug . | . . . . . Terrain Destroyed 188 | . 11 112 10 55 Melee . | . . . . . Projectile 4 | . . . . 4 AOE 184 | . 11 112 10 51 Terrain Rammed . | . . . . . Walls Destroyed . | . . . . . Machines Disabled . | . . . . . Actions | -11 -10 -9 -9 -8 --------- Run | Jun Mat Mat Min Mat Total 988 | 81 192 329 237 149 Wait . | . . . . . Move 855 | 66 178 254 235 122 Hop . | . . . . . Pick Up 27 | 9 6 10 1 1 Fast Attach . | . . . . . Attach 18 | 6 1 9 . 2 Detach . | . . . . . Swap 6 | . 2 3 . 1 Drop 3 | . . 3 . . Fire 79 | . 5 50 1 23 Melee . | . . . . . Ram . | . . . . . Kick . | . . . . . Crush . | . . . . . Escape Stasis . | . . . . . Rewire . | . . . . . Trap . | . . . . . Miscellaneous . | . . . . . Route ------- -11/Junkyard -10/Materials -9/Materials -9/Mines -8/Materials History --------- Turn | Location | Event 23 | -11/Junkyard | Discovered new exit (range 16) 82 | -11/Junkyard | Entered Materials 304 | -10/Materials | Discovered new exit (range 7) 315 | -10/Materials | Build established: Mutant 318 | -10/Materials | Entered another Materials area 318 | -9/Materials | Evolved 2 slots: Power x1, Weapon x1 487 | -9/Materials | Discovered new exit (range 7) 549 | -9/Materials | Crushed by falling debris 556 | -9/Materials | Lost 5 parts (1p4w) 821 | -9/Materials | Entered Mines 1066 | -9/Mines | Build established: Bomber 1191 | -9/Mines | Discovered new exit (range 7) 1202 | -9/Mines | Entered Materials 1202 | -8/Materials | Accompanied by 2 allies 1202 | -8/Materials | Evolved 2 slots: Utility x2 1207 | -8/Materials | Led the pair of lost Derelicts to an unsafe place 1479 | -8/Materials | Self-destructed Last Messages --------------- 01414_ Acquired 65 matter. 01418_ R-06 Scavenger collects Wheel. 01422_ The unstable cave ceiling collapses. 01422_ R-06 Scavenger collects Aluminum Leg. 01427_ Penetrated by Slug. 01445_ Critical hit (Burn: +37). 01448_ Destroyed Imp. Hover Unit. 01448_ Slug penetrates Wall. 01454_ Atomic Centrifuge disabled. 01456_ Grenade Launcher destroyed. 01457_ Y-45 Defender destroyed. 01457_ Lgt. Treads destroyed. 01463_ Hvy. Assault Rifle destroyed. 01463_ Ion Cannon destroyed. 01470_ Lgt. Treads destroyed. 01475_ Slug penetrates Wall. 01476_ Critical hit (Burn: +37). 01477_ U-05 Engineer lays Concrete. 01477_ Utility Shielding destroyed. 01478_ U-05 Engineer lays Concrete. Map ----- +----------------------------------------------------+ | # #??????????????????????????????????????????????? | | # ########???????????????????????????????????????? | | # # / ! #???????????????????????????????????????? | | # # #???????????????????????????????????????? | | # # #???????????? ?????????????????????????? | | + #????? ? ? ?????????????????????????? | | # "T" #????? "?" #????????????????????????? | | #! #???? """ #????????????????????????? | | ########????# """ #????????????????????????? | | #?#####?????# """ #????????????????????????? | | ### #?????# """ #????????????????????????? | | #?????# #????????????????????????? | | ##### #?????# #####????????????????????? | | ????# ######### #????????????????????? | | ????# """T""" ?????????????????????? | | ????# ^ ^ #??????????????????????? | | ????# """ !%=#??????????????????????? | | ????# """ Y#???????????????????????? | | ????# "" #???????????????????????? | | ????# h #???????????????????????? | | ????# "#/########????????????????? | | ????# ##g """ #????????????????? | | ????# ### ## """"" #????????????????? | | ????# #?# ##u """"" ?????????????????? | | ????# ##### #?# ##### """"" #????????????????? | | ????# ????# #?# #???# @%""" #????????????????? | | ????# ????# #?# #???# != #????????????????? | | ????# ????#+##+#?# #???# a ####?????????????? | | ????# ????? ?# #???#] u ????????????? | | ????# ?????"""" ?# #???# # #k ???????????? | | ??????????""""" # #########g#### # ##??????????? | | ??????????""""" # ! =% ??????????? | | ??????????""""" + [ ??????????? | | ??????????""""" # ! ??????????? | | ??????????""""" ### ########### #????????????? | | ???????????"""" ???# #????????? ????????????? | | ??????????? ???# #????????????? ????????????? | | ??????????###+#????# #???????????????????????????? | | ??????????????????? ???????????????????????????? | | ??????????????????? ???????????????????????????? | | ??????????????????? ???????????????????????????? | | ??????????????????" ??????????????????????????? | | ??????????????????" ??????????????????????????? | | ??????????????????" ??????????????????????????? | | ??????????????????? ??????????????????????????? | | ??????????????????? ??????????????????????????? | | ??????????????????? ???????????????????????????? | | ??????????????????? ???????????????????????????? | | ???????????????????###???????????????????????????? | | ?????????????????????????????????????????????????? | +----------------------------------------------------+ Best States ------------- Heat Dissipation 41 Energy Generation 15 Energy Capacity 600 Matter Stores 300 Matter Capacity 300 Sight Range 16 Terrain Scan Density 10 Utility Shielding 33 Evasion (%) 55 Recoil Reduction 2 Item Schematics ----------------- None Robot Schematics ------------------ None Fabricated ------------ Nothing Alien Tech Used ----------------- None Achievements -------------- Unlikely Earthworm Challenges ------------ None Game ------ Seed WaveDimensionalFrame Manual? 0 Play Time 00:23:37 Cumulative 2.7 hours Start 2023.09.25 @ 13:53:35 End 2023.09.25 @ 14:18:23 Sessions 1 Manual Loads 0 Difficulty Rogue Special Mode None Game No. 14 Rogue 14 Adventurer 0 Explorer 0 Win Type - Total 0 Types 0/0/0/0/0/0/0/0/0 Lore% 5 Gallery% 6 Achievement% 7 Wizard Run 0 Options --------- ASCII 0 Keyboard 0 Movement Mouse Keybinds 0 Fullscreen 2 Font 12/Smallcaps Map View 83x54 Tactical HUD 1 Map Filters NONE Filters NONE Steam 1 RUN: 7a7b0f91-9976-4150-9df2-82832de5fc17